Cogmind - Beta 16 @@@ ROGUE MODE // 2026.01.10 @ 16:06:42 Player: Lunishko Result: Destroyed by G-34 Mercenary with Small Laser Performance ------------- Evolutions (0) 0 Regions Visited (2) 400 Robots Destroyed (20) 100 Value Destroyed (592) 592 Prototype IDs (0) 0 Alien Tech Used (0) 0 Bonus (0) 0 TOTAL SCORE: 1092 Bonus ------- None Cogmind --------- Core Integrity 0/250 Matter 286/300 Energy 100/100 System Corruption 0% Temperature Warm (130) Movement Walking (120) Location -10/Mines Parts ------- > --- POWER (1) -------- (None) > --- PROPULSION (2) --- Aluminum Leg Aluminum Leg > --- UTILITY (2) ------ Medium Storage Unit Signal Interpreter > --- WEAPON (2) ------- Medium Laser Small Laser > --- INVENTORY (10) --- Visual Processing Unit Sensor Array Targeting Computer Hacking Suite EM Pulse Gun Small Laser Small Laser Small Laser Mining Laser Peak State ------------ > --- POWER ------------ Light Ion Engine > --- PROPULSION ------- Aluminum Leg Aluminum Leg > --- UTILITY ---------- Medium Storage Unit Signal Interpreter > --- WEAPON ----------- Medium Laser Small Laser > --- INVENTORY -------- Visual Processing Unit Sensor Array Targeting Computer EM Pulse Gun Small Laser Small Laser Small Laser Small Laser Mining Laser [Rating: 8] Favorites ----------- Power Light Ion Engine Engine Light Ion Engine Propulsion Light Treads Treads Light Treads Leg Aluminum Leg Utility Signal Interpreter Storage Small Storage Unit Processor Signal Interpreter Weapon Assault Rifle Energy Gun Medium Laser Ballistic Gun Assault Rifle Launcher Grenade Launcher Special Weapon Mining Laser Build | -11 -10 -10 ------- Run | Yrd Mat Min Slots Evolved . | . . . Power . | . . . Propulsion . | . . . Utility . | . . . Weapon . | . . . Parts Attached 20 | 6 14 . Power 2 | 1 1 . Engine 2 | 1 1 . Core . | . . . Reactor . | . . . Propulsion 4 | 2 2 . Treads 2 | 2 . . Leg 2 | . 2 . Wheel . | . . . Hover . | . . . Flight . | . . . Utility 5 | 1 4 . Device . | . . . Storage 4 | 1 3 . Processor 1 | . 1 . Hackware . | . . . Protection . | . . . Artifact . | . . . Weapon 9 | 2 7 . Energy Gun 6 | 1 5 . Energy Cannon . | . . . Ballistic Gun 1 | 1 . . Ballistic Cannon . | . . . Launcher 1 | . 1 . Special Weapon 1 | . 1 . Impact Weapon . | . . . Slashing Weapon . | . . . Piercing Weapon . | . . . Special Melee Weapon . | . . . Unidentified Prototypes . | . . . Parts Lost 6 | . 5 1 Power 1 | . . 1 Propulsion 2 | . 2 . Utility . | . . . Weapon 3 | . 3 . Highest Loss Streak 4 | . 4 1 To Critical Strikes . | . . . Average Backups 4 | . 4 9 Power . | . . . Propulsion . | . . . Utility 1 | . 1 4 Weapon 3 | . 3 5 Tool/Special . | . . . Unused Backups 11 | . 3 8 Power . | . . . Propulsion . | . . . Utility 5 | . 1 4 Weapon 5 | . 1 4 Tool/Special 1 | . 1 . Average Slot Usage (%) 93 | . 93 100 Engine 12 | . 12 14 Treads 15 | . 15 . Leg 11 | . 11 28 Storage 13 | . 13 14 Processor 11 | . 11 14 Energy Gun 16 | . 15 28 Ballistic Gun 7 | . 7 . Special Weapon 3 | . 3 . Peak Build Rating 8 | 6 8 8 Average Rating 6 | 4 6 7 On Entrance 4 | . 6 8 Avg Prop Armor Cover (%) . | . . . Naked Turns . | . . . Heaviest Build 16 | 12 16 . Greatest Support 40 | 40 40 . Greatest Overweight (x) 3 | . 3 . Average Overweight (x) . | . . . Largest Inventory Capacity 25 | 8 25 10 Average Capacity 8 | 6 8 10 Most Carried 10 | . 10 9 Average Carried 4 | . 4 9 Final Capacity 10 | 8 10 10 Final Carried 9 | . 9 9 Class Distribution -------------------- 67% | Mutant 32% | Scavenger-Mutant Dominant Class ---------------- Mutant | -10/Materials Mutant | -10/Mines Resources | -11 -10 -10 ----------- Run | Yrd Mat Min Matter Collected 488 | 171 317 . Remotely . | . . . Salvage Created 548 | . 548 . Parts 30 | . 30 . Haulers Intercepted . | . . . Recyclers Shooed . | . . . Parts Field Recycled . | . . . Retrieved Matter . | . . . Parts Self-Destructed . | . . . Prevented . | . . . Parts Restored . | . . . Kills | -11 -10 -10 ------- Run | Yrd Mat Min Combat Hostiles Destroyed 16 | . 16 . Guns 7 | . 7 . AOE 9 | . 9 . Classes Destroyed 4 | . 4 . Operator 1 | . 1 . Watcher 3 | . 3 . Swarmer 3 | . 3 . Grunt 13 | . 13 . Best Kill Streak 8 | . 8 . Combat Bots Only 8 | . 8 . Max Kills in Single Turn 3 | . 3 . Gunslinging . | . . . Exploded 3 | . 3 . Melee . | . . . Uniques/NPCs Destroyed . | . . . Combat | -11 -10 -10 -------- Run | Yrd Mat Min Hostile Shots Fired 106 | . 96 10 Missed 24 | . 22 2 Hits 82 | . 74 8 Projectile 82 | . 74 8 Critical Strikes 3 | . 3 . Damage Taken 1100 | . 995 105 Core 256 | . 215 41 Absorbed by Shields . | . . . Regen/Repaired (Parts) 39 | . 39 . Core Remaining (%) 100 | 100 . . Volleys Fired 49 | . 46 3 Largest 2 | . 2 2 Hottest 100 | . 100 90 Shots Fired 89 | . 83 6 Gun 84 | . 78 6 Cannon . | . . . Launcher 4 | . 4 . Special 1 | . 1 . Kinetic 24 | . 24 . Thermal 50 | . 44 6 Explosive 4 | . 4 . Electromagnetic 11 | . 11 . Robot Hit Streak 13 | . 13 4 Robot Miss Streak 5 | . 5 2 Penetration Max . | . . . Secondary Targets 1 | . 1 . Max Gunslinging Chain 1 | . 1 . Shots Hit Robots 47 | . 43 4 Core Hits 31 | . 30 1 Critical Kills . | . . . Critical Parts Destroyed . | . . . Critical Strikes 2 | . 2 . Corrupt 2 | . 2 . Melee Attacks . | . . . Impact . | . . . Slashing . | . . . Piercing . | . . . Sneak Attacks . | . . . Combat Hostiles . | . . . Follow-up Attacks . | . . . Damage Inflicted 1189 | . 1142 47 Guns 564 | . 517 47 Cannons . | . . . Explosions 625 | . 625 . Melee . | . . . Ramming . | . . . Kinetic 163 | . 163 . Thermal 409 | . 362 47 Explosive 505 | . 505 . Electromagnetic 112 | . 112 . Impact . | . . . Slashing . | . . . Piercing . | . . . Highest Corruption . | . . . Average Corruption . | . . . Corruption Purged . | . . . Corruption Blocked . | . . . Overload Shots . | . . . Overflow Damage 21 | . 21 . Projectiles . | . . . Explosions 21 | . 21 . Melee . | . . . Knockbacks . | . . . Impact . | . . . Kinetic . | . . . Secondary . | . . . Self-Inflicted Damage 113 | . 113 . Shots 5 | . 5 . Rammed . | . . . Targets Rammed . | . . . Kicked . | . . . Crushed . | . . . Highest Temperature 205 | . 205 115 Average Temperature 47 | . 46 66 Received Heat Transfer 552 | . 492 60 Siege Activations . | . . . Martial Activations . | . . . Shielding Activations . | . . . Robots Disrupted . | . . . Combat Hostiles . | . . . Robots Corrupted . | . . . Combat Hostiles . | . . . Parts Fried . | . . . Impact Corruptions . | . . . Robots Melted . | . . . Combat Hostiles . | . . . Parts Melted . | . . . Heat Transferred 916 | . 792 124 Parts Sabotaged . | . . . Parts Stolen . | . . . Parts Stripped . | . . . Power Chain Reactions 1 | . 1 . Alert | -11 -10 -10 ------- Run | Yrd Mat Min Maximum Alert Level 1 | . 1 . Low Security (%) 87 | 100 87 100 Level 1 12 | . 12 . Level 2 . | . . . Level 3 . | . . . Level 4 . | . . . Level 5 . | . . . High Security . | . . . Max Security . | . . . Peak Influence 237 | . 237 . Initial . | . . . Average 65 | . 68 . Influence Increases 560 | . 560 . Destroy 0b10 Robot/C 320 | . 320 . Destroy 0b10 Robot/NC 20 | . 20 . Destroy Leader 86 | . 86 . Successful Hack 26 | . 26 . Disable Machine 45 | . 45 . Destroy Structure 18 | . 18 . Lose Combat Pursuer 45 | . 45 . Influence Decreases 560 | . 560 . Time Decay 360 | . 360 . Lost Part 50 | . 50 . Purge Threat 150 | . 150 . Squads Dispatched 5 | . 5 . Investigation 3 | . 3 . Extermination . | . . . Reinforcement 2 | . 2 . Assault . | . . . Garrison . | . . . Intercept . | . . . Searches Triggered . | . . . Construction Impeded . | . . . Haulers Reinforced . | . . . Active Scanning Responses . | . . . Cargo Convoy Interrupts . | . . . Stealth | -11 -10 -10 --------- Run | Yrd Mat Min Distress Signals 1 | . 1 . Communications Jammed . | . . . Distress Signals . | . . . Times Spotted 29 | . 27 2 Peak Tracking Total 8 | . 8 2 Tactical Retreats 2 | . 2 . Traps | -11 -10 -10 ------- Run | Yrd Mat Min Traps Triggered 2 | . 2 . Indirectly . | . . . Trap Hack Attempts . | . . . Triggered . | . . . Disarmed . | . . . Reprogrammed . | . . . Reused . | . . . Traps Extracted . | . . . Installed . | . . . Triggered . | . . . Machines | -11 -10 -10 ---------- Run | Yrd Mat Min Machines Disabled 3 | . 3 . Max in Single Turn 1 | . 1 . Machines Repaired . | . . . Machines Dismantled . | . . . Machines Sabotaged . | . . . Overloaded Fab Kills . | . . . Hacking | -11 -10 -10 --------- Run | Yrd Mat Min Machines Accessed 8 | . 8 . Terminals 6 | . 6 . Fabricators . | . . . Repair Stations 1 | . 1 . Recycling Units 1 | . 1 . Scanalyzers . | . . . Garrison Access . | . . . Total Hacks 25 | . 25 . Successful 11 | . 11 . Failed 14 | . 14 . Catastrophic 1 | . 1 . Database Lockouts . | . . . Manual 18 | . 18 . Terminals 22 | . 22 . Fabricators . | . . . Repair Stations 2 | . 2 . Recycling Units 1 | . 1 . Scanalyzers . | . . . Garrison Access . | . . . Terminal Hacks 5 | . 5 . Robot Analysis 1 | . 1 . Terminal Index 1 | . 1 . Scanalyzer Index 1 | . 1 . Unreport Threat 1 | . 1 . Zone Layout 1 | . 1 . Fabricator Hacks . | . . . Repair Station Hacks 2 | . 2 . Scan Component 1 | . 1 . Repair 1 | . 1 . Recycling Unit Hacks 1 | . 1 . Retrieve Components 1 | . 1 . Scanalyzer . | . . . Garrison Access Hacks . | . . . Unauthorized Hacks 3 | . 3 . Terminals 3 | . 3 . Botnet 3 | . 3 . Fabricators . | . . . Repair Stations . | . . . Recycling Units . | . . . Scanalyzers . | . . . Garrison Access . | . . . Data Cores Recovered . | . . . Used . | . . . Hacking Detections 7 | . 7 . Full Trace Events 2 | . 2 . Feedback Events . | . . . Feedback Blocked . | . . . Robot Schematics Acquired . | . . . Robots Built . | . . . Authchips . | . . . Time . | . . . Total Robot Build Rating . | . . . Part Schematics Acquired . | . . . Parts Built . | . . . Authchips . | . . . Time . | . . . Total Part Build Rating . | . . . Part Studies Acquired . | . . . Parts Repaired 1 | . 1 . Time 26 | . 26 . Parts Recycled . | . . . Recycled Matter . | . . . Retrieved Matter . | . . . Retrieved Components 7 | . 7 . Parts Scanalyzed . | . . . Part Schematics Acquired . | . . . Parts Damaged . | . . . Bothacking | -11 -10 -10 ------------ Run | Yrd Mat Min Used RIF Installer . | . . . Robots Hacked . | . . . Non-combat . | . . . Combat . | . . . Robot Hacks Applied . | . . . Relay Couplers Released . | . . . Fabnet Peak Effective % . | . . . Robots Rewired . | . . . Allies Hacked . | . . . Hacks Repelled . | . . . Allies | -11 -10 -10 -------- Run | Yrd Mat Min Total Allies . | . . . Largest Group . | . . . Highest-Rated Group . | . . . Highest-Rated Ally . | . . . Total Orders . | . . . Ally Attacks . | . . . Total Damage . | . . . Kills . | . . . Allies Corrupted . | . . . Allies Melted . | . . . Intel | -11 -10 -10 ------- Run | Yrd Mat Min Active Infowar (turns) . | . . . Robot Analysis Total 1 | . 1 . Derelict Logs Recovered . | . . . Drone Launches . | . . . Drone Recoveries . | . . . Exploration | -11 -10 -10 ------------- Run | Yrd Mat Min Turns Passed 1812 | 84 1720 8 Spaces Moved 1095 | 53 1042 . Core 38 | 8 30 . Treads 559 | 45 514 . Legs 498 | . 498 . Wheels . | . . . Hover . | . . . Flight . | . . . Fastest Speed 50 | 50 50 . Average Speed 138 | 143 138 . Slowest Speed 200 | 160 200 . Overloaded Moves . | . . . Propulsion Burnouts . | . . . Robots Hopped . | . . . Potential Cave-ins . | . . . Cave-ins Triggered . | . . . Exploration Rate (%) 36 | 4 100 6 Regions Visited 2 Branch Regions 1 Pre-discovered Areas . | . . . Known Exits Taken 1 | . 1 . Unknown Exits Taken 1 | 1 . . Scrap Searched . | . . . Spaces Dug . | . . . Terrain Destroyed 26 | . 26 . Melee . | . . . Projectile . | . . . AOE 26 | . 26 . Terrain Rammed . | . . . Walls Destroyed . | . . . Machines Disabled . | . . . Actions | -11 -10 -10 --------- Run | Yrd Mat Min Total 1299 | 58 1238 3 Wait 96 | . 96 . Move 1093 | 52 1041 . Hop . | . . . Pick Up 27 | . 27 . Fast Attach 7 | 6 1 . Attach 9 | . 9 . Detach . | . . . Swap 6 | . 6 . Drop 12 | . 12 . Fire 49 | . 46 3 Melee . | . . . Ram . | . . . Kick . | . . . Crush . | . . . Escape Stasis . | . . . Rewire . | . . . Trap . | . . . Miscellaneous . | . . . Route ------- -11/Scrapyard -10/Materials (discovered 5 exits: *Mat x3 / *Min / *Sub) -10/Mines History --------- Turn | Location | Event 31 | -11/Scrapyard | Discovered new exit (range 16) 85 | -11/Scrapyard | Entered Materials 240 | -10/Materials | Discovered new exit (range 11) 316 | -10/Materials | Build established: Mutant 346 | -10/Materials | Discovered new exit (range 6) 410 | -10/Materials | Identified exit to Materials 446 | -10/Materials | Identified exit to Mines 653 | -10/Materials | Discovered new exit (range 7) 663 | -10/Materials | Identified exit to Subcaves 770 | -10/Materials | Repaired Lgt. Ion Engine 896 | -10/Materials | Discovered exit to Materials (range 13) 1062 | -10/Materials | Core integrity fell below 50% 1089 | -10/Materials | Core integrity fell below 20% 1091 | -10/Materials | Lost 4 parts (2n2w) 1112 | -10/Materials | Destroyed 8 combat bots 1223 | -10/Materials | Discovered exit to Materials (range 9) 1473 | -10/Materials | Build established: Scavenger-Mutant 1805 | -10/Materials | Entered Mines 1813 | -10/Mines | Destroyed by G-34 Mercenary with Small Laser Last Messages --------------- Purged threat record, alert level lowered. >>Index(Scanalyzers) No scanalyzers found. 01577_ Acquired EM Pulse Gun. 01584_ T-07 Excavator is excavating. 01646_ Terminal unresponsive. 01684_ K-01 Serf cleans the Hadron Collector. 01722_ K-01 Serf cleans the Fusion Modulator. 01735_ Destroyed Datajack. 01738_ O-16 Technician destroyed. 01738_ K-01 Serf collects debris. 01744_ Acquired Hacking Suite. 01745_ Acquired 13 matter. 01756_ Dropped Sml. Laser. 01763_ R-06 Scavenger collects Sml. Laser. 01773_ K-01 Serf collects debris. LOCATION=MINES GOAL=ESCAPE Something is scanning the area. 01811_ Lgt. Ion Engine destroyed. Map ----- +----------------------------------------------------+ | | | | | | | | | | | | | | | | | | | | | | | | | | | ????????????????????????????????? | | ????????????????????????????????? | | ??????????????????????##????????? | | ?????????????????????## ????????? | | ????????????????????## ???????? | | ???????????????????## ???????? | | ??????????????????## ???????? | | ?????????????????## ???????? | | ?????????????????# ###????? | | ??????????? ###### ##???? | | ?????????? ###?? | | ??????????? $ #?? | | ??????????????????# @ #? | | ??????????????????## #? | | ???????????????????##### g #? | | ???????????????????????## ##? | | ????????????????????????##g #?? | | ??????????????????????????# ##?? | | ??????????????????????????? ##??? | | ??????????????????????????? #???? | | ??????????????????????????? #???? | | ????????????????????????????#???? | | ????????????????????????????????? | | ????????????????????????????????? | | ????????????????????????????????? | | ????????????????????????????????? | | ????????????????????????????????? | | ????????????????????????????????? | | ????????????????????????????????? | | ????????????????????????????????? | | ????????????????????????????????? | | ????????????????????????????????? | | ????????????????????????????????? | | ????????????????????????????????? | | ????????????????????????????????? | | ????????????????????????????????? | | ????????????????????????????????? | +----------------------------------------------------+ Best States ------------- Heat Dissipation 25 Energy Generation 10 Energy Capacity 125 Matter Stores 300 Matter Capacity 300 Sight Range 16 Terrain Scan Density 10 Evasion (%) 55 Recoil Reduction 2 Item Schematics ----------------- None Robot Schematics ------------------ None Fabricated ------------ Nothing Repaired ---------- Lgt. Ion Engine | 2% | -10/Materials Studied --------- None Alien Tech Used ----------------- None Achievements -------------- None Challenges ------------ None Game ------ Seed AluminumNetworkedSpear Manual? 0 Play Time 00:19:35 Cumulative 19.2 hours Start 2026.01.10 @ 15:41:27 End 2026.01.10 @ 16:06:42 Sessions 1 Manual Loads 0 Difficulty Rogue Special Mode None Game No. 21 Rogue 21 Adventurer 0 Explorer 0 Win Type - Total 0 Types 0/0/0/0/0/0/0/0/0/0 Lore% 19 Gallery% 15 Achievement% 18 Wizard Run 0 Options --------- Layout 0 ASCII 0 Keyboard 0 Movement Mouse Keybinds 0 Fullscreen 2 Font 36/Smallcaps Map View 76x50 Zoom Use 0% Tactical HUD 1 Map Filters NONE Filters NONE Steam 1 RUN: 6c1c7c67-6fd1-46ec-ab48-d71ff71a143a